bitfinex/quotes_SOLUSD_20260304
["timestamp","ask_amount","ask_price","bid_price","bid_amount"]
[1772650653178,10.84175376,92.236,92.18,1.54647619]
[1772650654186,0.4214068,92.235,92.18,1.54647619]
[1772650654775,0.4207116,92.246,92.18,1.54647619]
[1772650654991,10.84046679,92.247,92.18,1.54647619]
[1772650654992,0.4207116,92.245,92.18,1.54647619]
[1772650655374,0.42002438,92.243,92.182,1.54647619]
[1772650655588,0.42002438,92.235,92.182,1.54647619]
[1772650657598,0.42002438,92.235,92.183,37.96795503]
[1772650657788,0.42002438,92.235,92.184,1.54647619]
[1772650658394,11.25907461,92.242,92.187,1.54647619]
[1772650658699,0.41800972,92.25,92.187,1.54647619]
[1772650658898,0.28432314,92.249,92.187,1.54647619]
[1772650659702,0.28432314,92.247,92.189,1.54647619]
[1772650660199,0.70167667,92.247,92.189,1.54647619]
[1772650661589,0.41606368,92.283,92.2,1.54647619]
[1772650661888,0.28432314,92.28,92.208,1.83079933]
[1772650662082,0.28432314,92.27,92.208,1.54647619]
[1772650662303,0.41606368,92.269,92.208,1.54647619]
[1772650662489,0.41542985,92.265,92.208,1.54647619]
[1772650663602,10.83200641,92.319,92.213,1.88108424]
[1772650663799,27.08001603,92.319,92.218,1.88108424]
[1772650663998,27.08001603,92.319,92.223,1.88108424]
[1772650664187,27.08001603,92.319,92.225,1.88108424]
[1772650664389,0.28432314,92.318,92.225,1.88108424]
[1772650664593,0.28432314,92.318,92.229,1.88108424]
[1772650665310,27.08001603,92.319,92.229,1.88108424]
[1772650665493,0.28432314,92.318,92.229,1.88108424]
[1772650665895,3.69383402,92.331,92.234,1.5967611]
[1772650665896,0.28432314,92.316,92.234,1.5967611]
[1772650667591,0.28432314,92.314,92.236,1.5967611]
[1772650669919,0.28432314,92.312,92.238,1.5967611]
[1772650671510,5.10909883,92.312,92.238,1.5967611]
[1772650672014,0.28432314,92.31,92.24,1.5967611]
[1772650674595,0.1,92.32,92.242,1.5967611]
[1772650674596,0.28432314,92.308,92.242,1.5967611]
[1772650677702,0.28432314,92.306,92.244,1.5967611]
[1772650679822,0.28432314,92.304,92.246,1.5967611]
[1772650680318,0.28432314,92.304,92.245,37.9424359]
[1772650680319,5.10909883,92.259,92.19,1.5967611]
[1772650680499,0.28432314,92.259,92.19,1.5967611]
[1772650681031,5.10909883,92.279,92.19,1.5967611]
[1772650681330,0.28432314,92.271,92.19,1.5967611]
[1772650682613,0.28432314,92.269,92.192,1.5967611]
[1772650683911,5.10909883,92.269,92.192,1.5967611]
[1772650684313,0.28432314,92.269,92.192,1.5967611]
[1772650684930,37.93297784,92.268,92.194,1.5967611]
[1772650685115,0.28432314,92.267,92.194,1.5967611]
[1772650688044,0.28432314,92.265,92.196,1.5967611]
[1772650688815,0.28432314,92.258,92.191,10.84700902]
[1772650689029,0.28432314,92.251,92.191,10.84700902]
[1772650689233,0.28432314,92.251,92.191,12.44377012]
[1772650689518,0.28432314,92.251,92.192,1.5967611]
[1772650690034,5.10909883,92.255,92.194,1.5967611]
[1772650691638,5.10909883,92.249,92.186,1.5967611]
[1772650692127,135.48813665,92.259,92.188,1.5967611]
[1772650692128,5.10909883,92.247,92.188,1.5967611]
[1772650692330,0.28432314,92.247,92.188,1.5967611]
[1772650693241,10.84034342,92.248,92.188,1.5967611]
[1772650693437,0.28432314,92.247,92.188,1.5967611]
[1772650694236,0.28432314,92.245,92.19,1.5967611]
[1772650695652,0.28432314,92.239,92.165,1.5967611]
[1772650696436,0.28432314,92.237,92.167,1.5967611]
[1772650697030,0.28432314,92.237,92.166,37.97495822]
[1772650697245,4.06321404,92.22,92.162,1.5967611]
[1772650697541,4.82477569,92.233,92.162,1.5967611]
[1772650697542,0.28432314,92.219,92.162,1.5967611]
[1772650697935,0.28432314,92.225,92.162,1.5967611]
[1772650698537,0.28432314,92.22,92.164,1.5967611]
[1772650700537,0.28432314,92.218,92.164,1.5967611]
[1772650701226,0.28432314,92.218,92.166,1.5967611]
[1772650701424,37.9531333,92.219,92.166,1.5967611]
[1772650701834,10.84375237,92.219,92.166,1.5967611]
[1772650703860,0.28432314,92.243,92.168,1.5967611]
[1772650705579,37.94284722,92.244,92.17,1.5967611]
[1772650705877,0.28432314,92.243,92.172,1.5967611]
[1772650708554,0.28432314,92.241,92.174,1.5967611]
[1772650710665,0.28432314,92.239,92.176,1.5967611]
[1772650713159,0.28432314,92.237,92.178,1.5967611]
[1772650715278,0.28432314,92.235,92.18,1.5967611]
[1772650718782,0.28432314,92.235,92.182,1.5967611]
[1772650718783,0.28432314,92.233,92.182,1.5967611]
[1772650722281,0.28432314,92.231,92.182,1.5967611]
[1772650722479,0.28432314,92.231,92.162,1.5967611]
[1772650723490,5.10909883,92.229,92.162,1.5967611]
[1772650724383,5.10909883,92.227,92.164,1.5967611]
[1772650725268,0.28432314,92.227,92.164,1.5967611]
[1772650725467,92.16290063,92.228,92.164,1.5967611]
[1772650725773,0.28432314,92.227,92.164,1.5967611]
[1772650727595,37.95025263,92.226,92.166,1.5967611]
[1772650730685,37.95025263,92.226,92.168,1.5967611]
[1772650733391,10.84292932,92.226,92.17,1.5967611]
[1772650735275,0.28432314,92.255,92.172,1.5967611]
[1772650737690,0.28432314,92.25,92.174,1.5967611]
[1772650740903,0.28432314,92.248,92.176,1.5967611]
[1772650743599,3.69383402,92.251,92.178,1.5967611]
[1772650743600,0.28432314,92.246,92.178,1.5967611]
[1772650746613,0.28432314,92.244,92.18,1.5967611]
[1772650749693,0.28432314,92.242,92.182,1.5967611]
[1772650750093,37.94325855,92.243,92.182,1.5967611]
[1772650750507,0.28432314,92.242,92.182,1.5967611]
[1772650751030,10.84093101,92.243,92.185,1.5967611]
[1772650751393,10.83963838,92.254,92.189,1.5967611]
[1772650751600,10.83963838,92.254,92.191,1.5967611]
[1772650752009,27.0957729,92.266,92.196,1.5967611]
[1772650752407,27.0957729,92.266,92.195,3.69383402]
[1772650752408,10.83728894,92.274,92.2,1.5967611]
[1772650752615,10.83603332,92.285,92.216,1.5967611]
[1772650752916,10.83603332,92.285,92.22,1.5967611]
[1772650753428,10.83458833,92.297,92.22,1.5967611]
[1772650753822,0.28432314,92.296,92.22,1.5967611]
[1772650754198,10.83482312,92.295,92.23,1.5967611]
[1772650755014,27.08292618,92.31,92.23,1.5967611]
[1772650755619,0.28432314,92.309,92.23,1.5967611]
[1772650756120,0.28432314,92.308,92.23,1.5967611]
[1772650756510,0.28432314,92.306,92.235,1.88108424]
[1772650758307,0.28432314,92.306,92.237,1.88108424]
[1772650758622,0.28432314,92.306,92.24,1.5967611]
[1772650758820,10.83364931,92.305,92.246,1.5967611]
[1772650759016,10.83364931,92.305,92.248,1.5967611]
[1772650759213,10.83364931,92.305,92.25,1.5967611]
[1772650759402,10.83364931,92.305,92.252,1.5967611]
[1772650759601,10.83364931,92.305,92.254,1.5967611]
[1772650759827,10.83364931,92.305,92.256,1.5967611]
[1772650760123,10.83364931,92.305,92.258,1.5967611]
[1772650760302,10.83364931,92.305,92.26,1.5967611]
[1772650761121,10.33397401,92.305,92.261,10.83881596]
[1772650761426,10.33397401,92.305,92.262,1.5967611]
[1772650762726,0.28432314,92.304,92.262,1.5967611]
[1772650763409,0.28432314,92.302,92.264,1.5967611]
[1772650764231,10.83388405,92.303,92.264,1.5967611]
[1772650765902,0.1,92.32,92.266,1.5967611]
[1772650768021,0.1,92.32,92.268,1.5967611]
[1772650769425,0.1,92.32,92.27,1.5967611]
[1772650772226,0.1,92.32,92.272,1.5967611]
[1772650772411,0.1,92.32,92.275,1.5967611]
[1772650773236,0.1,92.32,92.281,1.5967611]
[1772650773405,0.1,92.33,92.282,1.5467611]
[1772650774712,0.1,92.33,92.274,3.69383402]
[1772650774713,0.0967412,92.329,92.284,1.5467611]
[1772650775609,0.1,92.33,92.284,1.5467611]
[1772650777612,0.1,92.33,92.286,1.5467611]
[1772650777817,0.09674581,92.329,92.286,1.5467611]
[1772650779723,0.09674581,92.329,92.288,1.5467611]
[1772650780232,0.09638223,92.325,92.288,1.5467611]
[1772650783549,0.09638223,92.325,92.279,1.5467611]
[1772650785143,0.09638223,92.325,92.28,10.8365843]
[1772650785342,0.1,92.33,92.281,1.5467611]
[1772650785929,0.1,92.33,92.28,37.92804507]
[1772650785930,0.1,92.33,92.284,1.5467611]
[1772650786937,0.1,92.33,92.286,1.5467611]
[1772650787642,0.09516888,92.329,92.286,1.5467611]
[1772650787845,0.1,92.33,92.286,1.5467611]
[1772650788838,0.1,92.33,92.288,1.5467611]
[1772650791758,0.1,92.33,92.29,1.5467611]
[1772650792145,0.1,92.35,92.293,1.4967611]
[1772650792439,0.1,92.35,92.301,1.4967611]
[1772650793234,0.1,92.35,92.303,1.4967611]
[1772650793949,0.39404978,92.379,92.306,1.76899277]
[1772650794132,0.39404978,92.398,92.321,1.48466963]
[1772650794953,0.39389717,92.386,92.321,1.48466963]
[1772650795848,0.39374632,92.384,92.326,1.48466963]
[1772650796041,0.39374632,92.384,92.328,1.48466963]
[1772650796235,0.39374632,92.384,92.33,1.48466963]
[1772650796429,0.39374632,92.384,92.332,1.48466963]
[1772650796630,10.82309982,92.395,92.334,1.48466963]
[1772650796852,0.39359719,92.394,92.336,1.48466963]
[1772650797048,0.39359719,92.394,92.338,1.48466963]
[1772650797239,0.39359719,92.394,92.34,1.48466963]
[1772650797441,0.39359719,92.394,92.342,1.48466963]
[1772650797631,0.39359719,92.394,92.344,1.48466963]
[1772650797835,0.39393892,92.392,92.348,1.48466963]
[1772650798055,0.39393892,92.392,92.35,1.48466963]
[1772650798256,0.39427672,92.376,92.351,0.25619802]
[1772650798434,0.39427672,92.376,92.341,1.48466963]
[1772650798634,0.39427672,92.376,92.343,1.48466963]
[1772650798837,0.39427672,92.376,92.345,1.48466963]
[1772650799178,7.88361243,92.428,92.347,1.48466963]
[1772650799179,0.28432314,92.392,92.347,1.48466963]
[1772650799334,0.3950089,92.404,92.351,1.48466963]
[1772650799838,0.3950089,92.399,92.351,1.48466963]
[1772650800039,0.3950089,92.399,92.353,1.48466963]
[1772650800758,0.39573267,92.397,92.353,1.48466963]
[1772650801335,0.39644812,92.395,92.353,1.48466963]
[1772650801553,0.39644812,92.385,92.346,1.48466963]
[1772650801760,0.39644812,92.385,92.346,12.31343169]
[1772650801940,0.39644812,92.385,92.347,1.48466963]
[1772650802254,0.39644812,92.375,92.329,1.48466963]
[1772650803548,0.39785447,92.365,92.329,1.48466963]
[1772650804467,0.39854556,92.363,92.331,1.48466963]
[1772650804846,10.82607339,92.37,92.331,1.48466963]
[1772650805366,0.1,92.4,92.334,1.48466963]
[1772650805562,0.1,92.4,92.34,1.48466963]
[1772650805563,0.3992287,92.398,92.34,1.48466963]
[1772650806361,0.3992287,92.398,92.341,37.90298999]
[1772650806563,0.3992287,92.398,92.342,1.48466963]
[1772650806968,0.1,92.4,92.342,1.48466963]
[1772650807340,0.50057155,92.4,92.342,1.48466963]
[1772650807547,0.40057155,92.398,92.342,1.48466963]
[1772650808448,0.40057155,92.398,92.344,1.48466963]
[1772650809263,11.22409363,92.397,92.344,1.48466963]
[1772650809460,0.1,92.4,92.344,1.48466963]
[1772650809662,0.50188372,92.4,92.344,1.48466963]
[1772650809864,0.40188372,92.398,92.344,1.48466963]
[1772650810356,0.1,92.4,92.347,1.48466963]
[1772650810565,0.50252852,92.4,92.349,1.48466963]
[1772650811967,0.50252852,92.4,92.351,1.48466963]
[1772650813252,0.403796,92.399,92.351,1.48466963]
[1772650814171,0.403796,92.399,92.337,3.69383402]
[1772650814172,0.40441884,92.395,92.353,1.48466963]
[1772650815375,0.40503452,92.393,92.355,1.48466963]
[1772650817247,0.40624476,92.391,92.357,1.48466963]
[1772650818356,0.40800849,92.385,92.35,1.48466963]
[1772650818543,0.40800849,92.385,92.352,1.56746871]
[1772650819250,0.40800849,92.385,92.354,1.56746871]
[1772650819446,10.82284963,92.398,92.354,1.56746871]
[1772650819652,0.40858294,92.399,92.354,1.56746871]
[1772650819968,11.23121089,92.399,92.354,1.56746871]
[1772650820175,0.40858294,92.398,92.354,1.56746871]
[1772650821449,0.1,92.4,92.356,1.56746871]
[1772650822047,0.1,92.4,92.368,1.56746871]
[1772650823571,0.1,92.4,92.37,1.56746871]
[1772650824754,0.1,92.4,92.371,10.82590856]
[1772650824955,0.61135775,92.4,92.372,1.56746871]
[1772650825151,0.61135775,92.4,92.331,3.69383402]
[1772650825382,0.1,92.4,92.332,1.36737127]
[1772650825557,1.47640197,92.428,92.345,0.28432314]
[1772650825760,1.47640197,92.426,92.345,0.28432314]
[1772650826074,1.59535559,92.424,92.345,0.28432314]
[1772650826467,1.59535559,92.424,92.332,1.08304813]
[1772650826468,1.59535559,92.424,92.335,0.28432314]
[1772650826863,1.87967873,92.422,92.34,0.28432314]
[1772650827060,1.87967873,92.422,92.347,1.44603128]
[1772650827373,1.87967873,92.422,92.349,1.44603128]
[1772650828857,1.87967873,92.42,92.354,1.44603128]
[1772650830160,1.59535559,92.409,92.35,37.89929615]
[1772650830370,1.59535559,92.393,92.35,37.89929615]
[1772650830779,1.59535559,92.393,92.35,10.82837033]
[1772650831377,91.97043959,92.421,92.341,10.82942571]
[1772650831378,1.59535559,92.383,92.341,10.82942571]
[1772650831558,1.59535559,92.383,92.342,1.44603128]
[1772650832275,1.69535559,92.43,92.345,1.73035442]
[1772650832481,1.59535559,92.428,92.345,1.73035442]
[1772650832858,1.59535559,92.428,92.351,1.73035442]
[1772650833191,1.59535559,92.428,92.36,0.14216157]
[1772650833362,1.59535559,92.428,92.369,1.44603128]
[1772650833767,0.1,92.43,92.369,1.44603128]
[1772650833768,1.59535559,92.424,92.369,1.44603128]
[1772650835167,1.59535559,92.422,92.371,1.44603128]
[1772650836010,10.81981757,92.423,92.359,27.06802995]
[1772650836011,0.28432314,92.419,92.359,27.06802995]
[1772650836165,1.59535559,92.414,92.36,10.82719792]
[1772650836363,1.59535559,92.414,92.361,1.44603128]
[1772650837271,1.87967873,92.412,92.362,12.27299474]
[1772650837476,1.87967873,92.412,92.363,1.44603128]
[1772650839183,1.87967873,92.412,92.357,10.82744234]
[1772650839386,8.672281,92.41,92.347,10.8287221]
[1772650839563,37.87427903,92.411,92.347,10.8287221]
[1772650839760,37.87427903,92.411,92.348,1.44603128]
[1772650840370,91.98039193,92.411,92.348,1.44603128]
[1772650841281,8.95660414,92.41,92.347,10.8287221]
[1772650841480,0.28432314,92.396,92.342,1.44603128]
[1772650841680,1.59535559,92.385,92.342,1.44603128]
[1772650843287,1.59535559,92.401,92.342,1.44603128]
[1772650843474,1.59535559,92.401,92.321,43.32662664]
[1772650843475,1.59535559,92.396,92.344,1.44603128]
[1772650845766,1.59535559,92.394,92.346,1.44603128]
[1772650848870,1.61311684,92.392,92.348,1.52536718]
[1772650850602,1.61311684,92.386,92.348,1.52536718]
[1772650850791,1.61311684,92.384,92.35,1.52536718]
[1772650852194,1.61311684,92.384,92.352,1.52536718]
[1772650853592,5.10909883,92.376,92.287,1.63955067]
[1772650853795,3.97815716,92.376,92.287,1.63955067]
[1772650854496,81.18376756,92.383,92.291,1.63955067]
[1772650854497,0.28432314,92.379,92.291,1.63955067]
[1772650855391,0.28432314,92.382,92.301,1.63955067]
[1772650855593,5.10909883,92.38,92.303,1.63955067]
[1772650855790,13.78137983,92.38,92.303,1.63955067]
[1772650856588,0.28432314,92.369,92.303,1.63955067]
[1772650856994,0.28432314,92.378,92.303,1.63955067]
[1772650858289,0.28432314,92.369,92.305,1.63955067]
[1772650858805,0.28432314,92.372,92.305,1.63955067]
[1772650858991,0.28432314,92.369,92.305,1.63955067]
[1772650859598,3.97815716,92.373,92.305,1.63955067]
[1772650860183,3.69383402,92.388,92.307,1.63955067]
[1772650860404,37.88329779,92.389,92.307,1.63955067]
[1772650860706,37.88329779,92.389,92.306,37.91736181]
[1772650860707,37.88329779,92.389,92.311,1.63955067]
[1772650861214,0.28432314,92.388,92.311,1.63955067]
[1772650862512,0.28432314,92.386,92.313,1.63955067]
[1772650865989,0.28432314,92.384,92.315,1.63955067]
[1772650866199,37.88493802,92.385,92.321,1.63955067]
[1772650866896,0.28432314,92.384,92.321,1.63955067]
[1772650868015,10.82169099,92.407,92.331,1.63955067]
[1772650868519,0.28432314,92.406,92.331,1.63955067]
[1772650870025,10.82192522,92.405,92.336,1.92387381]
[1772650871510,10.82016879,92.42,92.336,1.92387381]
[1772650872244,0.1,92.43,92.341,1.92387381]
[1772650874102,0.1,92.43,92.346,1.92387381]
[1772650876031,0.1,92.43,92.346,1.63955067]
[1772650876032,0.28432314,92.419,92.346,1.63955067]
[1772650876236,0.28432314,92.417,92.351,1.63955067]
[1772650876734,10.81911521,92.429,92.361,1.63955067]
[1772650877022,0.28432314,92.428,92.361,1.63955067]
[1772650877230,0.14216157,92.428,92.361,1.63955067]
[1772650878155,0.14216157,92.428,92.362,37.89437213]
[1772650878343,0.1,92.43,92.363,1.63955067]
[1772650878731,0.1,92.43,92.371,1.63955067]
[1772650879234,0.1,92.43,92.379,1.63955067]
[1772650879435,0.1,92.43,92.381,1.63955067]
[1772650880252,0.1,92.43,92.383,1.63955067]
[1772650880550,0.1,92.43,92.391,1.63955067]
[1772650882338,0.1,92.43,92.382,37.88616829]
[1772650882339,0.1,92.43,92.393,1.63955067]
[1772650883048,0.09650224,92.461,92.403,1.611385]
[1772650883245,0.09586619,92.455,92.403,1.611385]
[1772650884532,0.09586619,92.455,92.405,1.611385]
[1772650885655,0.09586619,92.455,92.404,10.82204233]
[1772650885843,0.09586619,92.455,92.404,1.611385]
[1772650886654,0.09586619,92.455,92.405,10.82192522]
[1772650887245,0.09586619,92.455,92.405,12.45557166]
[1772650887641,0.09586619,92.455,92.406,1.63364644]
[1772650888451,0.09586619,92.455,92.407,10.82169099]
[1772650888756,0.09586619,92.455,92.408,1.63364644]
[1772650890351,0.09586619,92.455,92.398,1.63364644]
[1772650890743,0.09586619,92.455,92.4,1.63364644]
[1772650893361,0.09586619,92.455,92.402,1.63364644]
[1772650896359,10.81595569,92.456,92.404,1.63364644]
[1772650896676,0.08763758,92.455,92.404,1.63364644]
[1772650896963,10.81595569,92.456,92.404,1.63364644]
[1772650897570,10.8155426,92.46,92.404,1.63364644]
[1772650898346,10.90210534,92.46,92.404,1.63364644]
[1772650899863,10.90210534,92.46,92.406,1.63364644]
[1772650900852,0.08551246,92.459,92.408,1.63364644]
[1772650902366,0.1559779,92.463,92.42,1.63364644]
[1772650902569,10.81525383,92.462,92.42,1.63364644]
[1772650902770,0.08448616,92.461,92.408,1.63364644]
[1772650902946,0.1559779,92.463,92.364,104.4]
[1772650902947,0.1559779,92.463,92.41,1.63364644]
[1772650903155,0.08448616,92.461,92.41,1.63364644]
[1772650904260,0.08398184,92.46,92.41,1.63364644]
[1772650904952,0.0834833,92.458,92.41,1.63364644]
[1772650905566,0.0834833,92.458,92.402,1.63364644]
[1772650907163,1.61832935,92.479,92.407,1.63364644]
[1772650907968,1.61832935,92.469,92.407,1.63364644]
[1772650909293,1.81514842,92.466,92.409,1.49395059]
[1772650910800,1.53082528,92.464,92.411,1.49395059]
[1772650912985,4.1427431,92.48,92.413,1.49395059]
[1772650912986,1.53082528,92.462,92.413,1.49395059]
[1772650915902,1.53082528,92.46,92.415,1.49395059]
[1772650917586,10.81560475,92.459,92.417,1.49395059]
[1772650918101,1.53082528,92.458,92.417,1.49395059]
[1772650919800,1.53082528,92.475,92.419,1.49395059]
[1772650921603,0.1,92.48,92.418,10.82040295]
[1772650921604,0.28432314,92.47,92.418,10.82040295]
[1772650921806,1.53082528,92.459,92.415,1.49395059]
[1772650922503,91.92369251,92.468,92.408,1.49395059]
[1772650922504,1.53082528,92.449,92.408,1.49395059]
[1772650924012,1.53082528,92.447,92.41,1.49395059]
[1772650924510,10.81689165,92.448,92.37,1.49395059]
[1772650924511,1.53082528,92.441,92.37,1.49395059]
[1772650924826,1.53082528,92.439,92.37,1.49395059]
[1772650925028,1.53082528,92.429,92.37,1.49395059]
[1772650925511,1.53082528,92.427,92.37,1.49395059]
[1772650925725,1.53082528,92.409,92.362,1.49395059]
[1772650925888,1.53082528,92.407,92.362,1.49395059]
[1772650927107,1.53082528,92.399,92.342,1.49395059]
[1772650927308,1.53082528,92.389,92.342,1.49395059]
[1772650928108,1.53082528,92.387,92.344,1.49395059]
[1772650928415,10.82391652,92.388,92.344,1.49395059]
[1772650928613,27.05393472,92.408,92.344,1.49395059]
[1772650928614,1.53082528,92.393,92.344,1.49395059]
[1772650929109,1.53082528,92.403,92.344,1.49395059]
[1772650929904,1.53082528,92.401,92.344,1.49395059]
[1772650930105,10.82227657,92.402,92.346,1.49395059]
[1772650930717,12.35310185,92.402,92.346,1.49395059]
[1772650932805,1.53082528,92.401,92.348,1.49395059]
[1772650933717,1.53082528,92.399,92.348,1.49395059]
[1772650934117,10.82227657,92.402,92.348,1.49395059]
[1772650935001,1.53082528,92.401,92.35,1.49395059]
[1772650936721,27.05258921,92.413,92.35,1.49395059]
[1772650936722,10.82176412,92.407,92.35,1.49395059]
[1772650936903,1.53082528,92.406,92.352,1.49395059]
[1772650938732,1.53082528,92.406,92.305,4.82477569]
[1772650938733,1.41910044,92.4,92.344,1.53755644]
[1772650938936,3.69383402,92.432,92.288,43.34217668]
[1772650938937,1.41910044,92.38,92.326,10.83115369]
[1772650939111,1.41910044,92.37,92.326,10.83115369]
[1772650939608,1.41910044,92.37,92.288,43.34242482]
[1772650939609,1.41910044,92.37,92.315,1.53755644]
[1772650939815,1.41910044,92.35,92.305,1.53755644]
[1772650940632,1.41910044,92.344,92.305,1.53755644]
[1772650941345,1.41910044,92.342,92.303,10.83379071]
[1772650941709,1.41910044,92.338,92.303,10.83379071]
[1772650941929,1.41910044,92.338,92.3,0.2]
[1772650942114,31.41910044,92.339,92.302,1.53755644]
[1772650942535,31.41910044,92.339,92.303,1.53755644]
[1772650942536,24.69101934,92.339,92.303,1.53755644]
[1772650942715,10.82874713,92.347,92.303,1.53755644]
[1772650942915,1.41910044,92.348,92.303,1.53755644]
[1772650943127,10.82826003,92.351,92.303,1.53755644]
[1772650943427,10.82826003,92.351,92.3,0.2]
[1772650943428,10.82719792,92.36,92.307,1.53755644]
[1772650943641,1.41910044,92.361,92.307,1.53755644]
[1772650943819,12.2462699,92.361,92.307,1.53755644]
[1772650944136,1.41910044,92.36,92.307,1.53755644]
[1772650944928,10.82716946,92.361,92.307,1.53755644]
[1772650945134,54.1144595,92.397,92.306,37.91736181]
[1772650945135,1.41910044,92.385,92.31,1.82187958]
[1772650945463,1.41910044,92.383,92.315,1.53755644]
[1772650946625,1.45498637,92.381,92.315,1.53755644]
[1772650946835,1.45498637,92.38,92.324,0.28432314]
[1772650947033,1.45498637,92.38,92.325,1.40527252]
[1772650947754,1.45498637,92.378,92.327,1.40527252]
[1772650948353,1.45498637,92.402,92.327,1.40527252]
[1772650948531,1.45498637,92.402,92.334,1.40527252]
[1772650949123,1.45498637,92.4,92.334,1.40527252]
[1772650949845,1.45498637,92.398,92.336,1.40527252]
[1772650951947,1.45498637,92.39,92.338,1.40527252]
[1772650953646,1.45498637,92.398,92.341,1.40527252]
[1772650953960,57.78585668,92.436,92.34,3.69383402]
[1772650953961,1.45498637,92.397,92.343,1.40527252]
[1772650954251,1.45498637,92.405,92.345,1.40527252]
[1772650954561,27.05048128,92.42,92.345,1.40527252]
[1772650954562,10.82121152,92.412,92.347,1.40527252]
[1772650954739,1.45498637,92.411,92.355,1.40527252]
[1772650954934,1.45498637,92.409,92.355,1.40527252]
[1772650956167,1.45498637,92.407,92.357,1.40527252]
[1772650958135,1.45498637,92.405,92.359,1.40527252]
[1772650959251,1.45498637,92.399,92.359,1.40527252]
[1772650960554,1.45498637,92.399,92.324,43.32567353]
[1772650960555,0.28432314,92.41,92.362,1.40527252]
[1772650960763,1.45498637,92.409,92.362,1.40527252]
[1772650962855,135.23016171,92.435,92.363,10.82684624]
[1772650962856,1.45498637,92.407,92.363,10.82684624]
[1772650963545,1.45498637,92.407,92.364,1.40527252]
[1772650964855,1.45498637,92.405,92.366,1.40527252]
[1772650967060,3.69383402,92.432,92.358,1.40527252]
[1772650967061,1.45498637,92.399,92.358,1.40527252]
[1772650967755,1.45498637,92.399,92.343,1.40527252]
[1772650967959,0.28432314,92.38,92.343,1.40527252]
[1772650968262,0.28432314,92.38,92.342,10.82930844]
[1772650968263,1.45498637,92.379,92.334,1.40527252]
[1772650969257,1.50375237,92.365,92.335,10.83012942]
[1772650970539,1.50375237,92.365,92.336,1.49791013]
[1772650970739,30.0,92.364,92.336,1.49791013]
[1772650971355,30.0,92.364,92.338,1.49791013]
[1772650972961,10.82589374,92.372,92.34,1.49791013]
[1772650973159,1.49440507,92.385,92.34,1.49791013]
[1772650973358,1.49440507,92.379,92.34,1.49791013]
[1772650974361,1.48989092,92.377,92.322,1.49791013]
[1772650974560,0.28432314,92.36,92.302,1.49791013]
[1772650974867,1.48989092,92.349,92.302,1.49791013]
[1772650975164,1.48989092,92.347,92.304,1.49791013]
[1772650975673,30.0,92.358,92.303,10.83388405]
[1772650975674,5.65211248,92.406,92.317,4.96693726]
[1772650975850,43.26429073,92.455,92.342,1.49791013]
[1772650976048,43.26429073,92.455,92.33,8.51860971]
[1772650976049,8.67801021,92.45,92.346,1.49791013]
[1772650976270,43.26429073,92.455,92.354,1.49791013]
[1772650976455,0.28432314,92.454,92.354,1.49791013]
[1772650977282,43.26429073,92.455,92.356,1.49791013]
[1772650977574,1.51296194,92.45,92.356,1.49791013]
[1772650979176,3.69383402,92.446,92.358,1.49791013]
[1772650979363,1.51296194,92.445,92.358,1.49791013]
[1772650980370,1.01955068,108.6,92.357,37.89642365]
[1772650980371,1.51296194,92.452,92.363,1.78223327]
[1772650980563,1.51296194,92.452,92.368,1.78223327]
[1772650980961,1.51296194,92.45,92.368,1.78223327]
[1772650981574,1.51296194,92.448,92.373,1.78223327]
[1772650981953,1.51296194,92.444,92.373,1.49791013]
[1772650982171,0.28432314,92.431,92.373,1.49791013]
[1772650982379,1.51296194,92.43,92.375,1.49791013]
[1772650982773,10.81677465,92.449,92.375,1.49791013]
[1772650982774,1.79728508,92.448,92.375,1.49791013]
[1772650983369,1.51296194,92.448,92.385,1.49791013]
[1772650984065,10.81700866,92.447,92.385,1.49791013]
[1772650984383,1.51296194,92.446,92.387,1.49791013]
[1772650988875,8.77801021,92.48,92.395,1.49791013]
[1772650988876,1.51296194,92.456,92.395,1.49791013]
[1772650989190,1.51296194,92.454,92.395,1.49791013]
[1772650990284,1.51296194,92.469,92.405,1.49791013]
[1772650990487,3.69383402,92.489,92.391,3.69383402]
[1772650990488,1.51296194,92.527,92.415,1.49791013]
[1772650990663,515.8,92.594,92.396,4.82477569]
[1772650990664,4.7989313,92.546,92.502,1.49791013]
[1772650990869,10.81326571,92.618,92.505,3.69383402]
[1772650990870,1.54499958,92.616,92.505,3.69383402]
[1772650991077,1.54499958,92.616,92.506,0.28432314]
[1772650991301,1.54499958,92.616,92.503,9.04789693]
[1772650991302,1.54499958,92.616,92.507,142.7]
[1772650991594,43.15501604,92.69,92.557,1.49791013]
[1772650991795,80.95155857,92.648,92.511,1.49791013]
[1772650992092,10.79264584,92.656,92.517,1.49791013]
[1772650992262,6.8381566,92.674,92.528,1.49791013]
[1772650992263,97.14187028,92.648,92.528,1.49791013]
[1772650992464,210.47405228,92.648,92.521,0.28432314]
[1772650992765,43.20099897,92.591,92.503,0.14216157]
[1772650992971,8.67801021,92.57,92.49,1.49791013]
[1772650993286,3.69383402,92.588,92.435,43.27343221]
[1772650993287,5.10909883,92.559,92.501,2.54389332]